[Event "44th Chess Olympiad Open 2022"]
[Site "Chennai"]
[Date "2022.08.08"]
[Round "10.21"]
[White "Perez Ponsa, Federico"]
[Black "Siddharth, Jagadeesh"]
[Result "1/2-1/2"]
[ECO "C42"]
[WhiteElo "2554"]
[BlackElo "2426"]
[Annotator "TA"]
[PlyCount "258"]
[EventDate "2022.07.29"]
[EventType "team-tourn"]
[EventCountry "IND"]
[SourceTitle "playchess.com"]
[Source "ChessBase"]
[SourceQuality "1"]
[WhiteTeam "Argentina"]
[BlackTeam "SGP"]
[WhiteTeamCountry "ARG"]
[TimeControl "40/5400+30:1800+30"]

{[%evp 21,258,22,16,16,16,18,18,13,19,13,19,15,15,12,15,13,16,12,17,7,9,8,15,12,14,8,68,33,59,18,20,8,0,-32,-37,-74,-66,-102,-80,-81,-81,-87,-41,-133,-140,-143,-143,-285,-160,-241,-237,-264,-291,-311,-322,-327,-266,-266,-266,-250,-250,-209,-290,-267,-251,-264,-265,-281,-280,-234,-100,-119,-69,-71,-90,-213,-37,-37,-37,-37,-37,-35,-35,-34,-35,-34,-26,-35,-8,-41,-41,-42,-8,-8,-8,-8,-8,-8,0,0,0,-8,-8,-8,0,0,0,0,0,0,0,0,0,0,0,0,0,0,0,0,0,0,0,0,0,-8,0,0,0,0,0,0,0,0,0,0,0,-8,0,-8,-8,-8,0,0,0,0,0,0,0,0,0,0,0,0,0,0,0,0,0,0,0,0,0,0,0,0,0,0,0,0,0,0,0,0,0,0,0,0,0,0,0,0,0,0,0,0,0,0,0,0,0,0,0,0,0,0,0,0,0,0,0,0,0,0,0,0,0,0,0,0,0,0,0,0,0,0,0,0,0,0,0,0,0,0,0,0,0,0,0,0,0,0,0,0,0,0,0,0,0]} 1. e4 {[%emt 0:00:07]} e5 {[%emt 0:00:32]} 2. Nf3 {[%emt 0:00:13]} Nf6 {[%emt 0:00:34]} 3. Nxe5 {[%emt 0:00:49]} d6 {[%emt 0:00:28]} 4. Nf3 {[%emt 0:00:26]} Nxe4 {[%emt 0:00:23]} 5. d4 {[%emt 0:00:29]} d5 {[%emt 0:00:24]} 6. Bd3 {[%emt 0:00:28]} Bd6 {[%emt 0:00:19]} 7. O-O {[%emt 0:00:16]} O-O {[%emt 0:00:08]} 8. c4 {[%emt 0:00:21]} c6 {[%emt 0:00:28]} 9. Nc3 {[%emt 0:00:48]} Nxc3 {[%emt 0:00:22]} 10. bxc3 {[%emt 0:00:05]} dxc4 {[%emt 0:00:13]} 11. Bxc4 {[%emt 0:00:05]} Bf5 {[%emt 0:00:19]} 12. Bg5 $1 {[%emt 0:01:44] 12.Bg5 is better than 12.Re1. C42: Petroff Defence: 3 Nxe5 and unusual White 3rd moves.} Qa5 {[%emt 0:00:10]} 13. Nh4 {[%emt 0:04:12]} Be6 {[%emt 0:00:09]} 14. Bxe6 {[%emt 0:00:07]} Qxg5 {[%emt 0:00:07]} 15. Nf3 {[%emt 0:00:06]} Qa5 {[%emt 0:00:09]} 16. Bb3 {[%emt 0:00:06]} Nd7 {[%emt 0:00:05]} 17. Qd3 {[%emt 0:05:18]} Nf6 {[%emt 0:03:19]} 18. g3 {[%emt 0:04:26]} Rae8 {[%emt 0:00:16]} 19. Rfe1 {[%emt 0:05:54]} g6 {[%emt 0:02:09]} 20. Kg2 {[%emt 0:03:35]} Kg7 {[%emt 0:01:10]} 21. h4 {[%emt 0:03:20]} h6 {[%emt 0:02:23]} 22. Rad1 {[%emt 0:02:51]} Qc7 {[%emt 0:04:50]} 23. c4 {[%emt 0:06:30] [#] Threatening c5.} b6 $146 {[%emt 0:25:32] Against c5} (23... Rxe1 $11 24. Rxe1 Qd8) ({Predecessor:} 23... c5 24. d5 Nh5 25. Ba4 Re7 26. Rxe7 Qxe7 27. Re1 Qf6 28. Nd2 Qxh4 29. Ne4 Qe7 {1-0 (38) Sjugirov,S (2663)-Erigaisi,A (2634) Riga 2021}) 24. Bc2 {[%emt 0:24:31]} (24. Qc3 $5 {[%cal Rc4c5]}) 24... Rd8 {[%emt 0:27:14]} 25. h5 {[%emt 0:02:27]} Nxh5 {[%emt 0:02:57][%cal Rd6g3]} 26. Nh4 {[%emt 0:00:55][%cal Rh4g6]} Qd7 {[%emt 0:10:58]} 27. Qf3 {[%emt 0:07:34][%cal Oh4f5]} ({Not} 27. Nxg6 $2 Qg4 $1 28. Ne5 (28. Re7 $2 Bxe7 29. Ne5 Nf4+ 30. Kg1 Nxd3 $19) 28... Nf4+ 29. Kg1 Nxd3 $19) 27... Nf6 {[%emt 0:00:26]} 28. Rh1 {[%emt 0:05:39]} Qg4 {[%emt 0:06:20]} 29. Ba4 {[%emt 0:06:27]} c5 {[%emt 0:00:00]} 30. Qxg4 {[%emt 0:03:47]} Nxg4 {[%emt 0:00:00]} 31. d5 {[%emt 0:00:29]} f5 {[%emt 0:06:32]} ({Better is} 31... Ne5 $17 32. Rc1 Rb8) 32. Rhe1 {[%emt 0:01:05]} (32. Nf3 $15) 32... Ne5 $17 {[%emt 0:02:49]} 33. f4 {[%emt 0:08:32]} Nxc4 {[%emt 0:00:40]} 34. Bb3 {[%emt 0:00:07]} (34. Re6 $17) 34... Na5 {[%emt 0:02:47]} (34... Na3 $19 {White must now prevent ...c4.} 35. Re6 Rf6) 35. Re6 {[%emt 0:00:06]} (35. Ba4 $17 {is a better defense.}) 35... Rf6 $19 {[%emt 0:00:57]} 36. Rxf6 {[%emt 0:03:34]} Kxf6 {[%emt 0:00:01]} 37. Re1 {[%emt 0:00:05]} c4 {[%emt 0:01:30]} 38. Ba4 {[%emt 0:01:23]} Be7 {[%emt 0:01:12]} 39. Nxg6 {[%emt 0:00:32]} Kxg6 {[%emt 0:00:20]} 40. Rxe7 {[%emt 0:00:16]} Rxd5 {[%emt 0:00:26][%mdl 4096] Endgame KRB-KRN} 41. Be8+ {[%emt 0:03:44]} Kf6 {[%emt 0:01:17]} 42. Rf7+ {[%emt 0:03:15]} Ke6 {[%emt 0:00:23]} 43. Rxa7 {[%emt 0:00:07] aiming for Bf7+.} Rc5 {[%emt 0:04:41] ...c3 is the strong threat.} 44. Ra6 {[%emt 0:01:45]} c3 {[%emt 0:03:23] And now ...c2 would win.} 45. Rxb6+ {[%emt 0:00:09]} Ke7 {[%emt 0:00:03]} (45... Kd5 $1 $19 {Hoping for ...c2.} 46. Bf7+ Ke4 47. Re6+ Kd3 48. Rd6+ Kc2) 46. Ba4 $17 {[%emt 0:00:07] [#]} c2 {[%emt 0:00:55] Inhibits Rb1.} ({Black should play} 46... Nc6 $1 $17 {[%cal Oc5c4][%mdl 512]} 47. Kh3 {[#]} (47. Bxc6 $2 c2 $19) (47. Rxc6 $2 Rxc6 48. Bc2 Rb6 $19) 47... Rc4 $1) 47. Bxc2 $1 $15 {[%emt 0:00:03]} Rxc2+ {[%emt 0:00:04] KRN-KR} 48. Kh3 {[%emt 0:00:20]} Nc4 $2 {[%emt 0:00:38]} (48... Rxa2 $19 {Strongly threatening ...Nc4.} 49. Rb5 Ke6 50. Rb6+ Kd5) 49. Rc6 {[%emt 0:05:31]} Rc1 {[%emt 0:10:16] Threatens to win with ...Kd7.} 50. Kh2 $1 {[%emt 0:04:16]} Kd7 {[%emt 0:10:55]} 51. Rc5 {[%emt 0:00:19]} Kd6 {[%emt 0:00:03]} 52. Rxf5 {[%emt 0:01:00]} Ne3 {[%emt 0:00:01]} ({Reject} 52... Rc2+ $6 53. Kh3 $17) 53. Rh5 {[%emt 0:02:07]} Ra1 {[%emt 0:00:01]} 54. a4 {[%emt 0:03:35]} Rxa4 {[%emt 0:00:33]} 55. g4 {[%emt 0:01:25]} Nxg4+ {[%emt 0:03:03]} 56. Kg3 {[%emt 0:00:08]} Ne3 {[%emt 0:00:07]} 57. Rxh6+ {[%emt 0:00:08] The position is equal.} Kd5 {[%emt 0:00:08]} 58. Rh5+ {[%emt 0:00:27]} Ke4 {[%emt 0:02:23]} 59. Re5+ {[%emt 0:00:12]} Kd4 {[%emt 0:00:17]} 60. Kf3 {[%emt 0:00:09]} Nc4 {[%emt 0:00:05]} 61. Re4+ {[%emt 0:01:23]} Kd5 {[%emt 0:00:46]} 62. Re8 {[%emt 0:00:25]} Nd6 {[%emt 0:01:11]} 63. Re5+ {[%emt 0:00:06]} Kd4 {[%emt 0:00:07]} 64. Re1 {[%emt 0:00:26]} Ra3+ {[%emt 0:00:29]} 65. Kg4 {[%emt 0:00:06]} Ne4 {[%emt 0:00:45]} 66. Kf5 {[%emt 0:00:20]} Ra5+ {[%emt 0:00:09]} 67. Ke6 {[%emt 0:00:44]} Nc5+ {[%emt 0:00:25]} 68. Kf6 {[%emt 0:00:25]} Ra6+ {[%emt 0:00:55]} 69. Kf5 {[%emt 0:00:10]} Nd3 {[%emt 0:00:33]} 70. Re4+ {[%emt 0:00:06]} Kd5 {[%emt 0:00:06]} 71. Re8 {[%emt 0:00:06]} Rd6 {[%emt 0:00:22]} 72. Re3 {[%emt 0:00:14]} Nc5 {[%emt 0:00:28]} 73. Re5+ {[%emt 0:00:07]} Kd4 {[%emt 0:00:03]} 74. Re1 {[%emt 0:00:09]} Rd8 {[%emt 0:00:19]} 75. Rd1+ {[%emt 0:00:48]} Nd3 {[%emt 0:00:03]} 76. Ra1 {[%emt 0:00:24]} Rf8+ {[%emt 0:00:05]} 77. Ke6 {[%emt 0:00:06]} Nc5+ {[%emt 0:01:28]} 78. Kd6 {[%emt 0:00:20]} Rf6+ {[%emt 0:00:04]} 79. Ke7 {[%emt 0:00:07]} Rxf4 {[%emt 0:00:28]} 80. Rd1+ {[%emt 0:00:24]} Ke5 {[%emt 0:00:23]} 81. Re1+ {[%emt 0:00:06]} Ne4 {[%emt 0:01:18]} 82. Kd7 {[%emt 0:00:08]} Rf6 {[%emt 0:00:07]} 83. Kc7 {[%emt 0:00:10]} Kd5 {[%emt 0:00:29]} 84. Rd1+ {[%emt 0:00:06]} Ke5 {[%emt 0:01:28]} 85. Re1 {[%emt 0:00:08]} Rf2 {[%emt 0:00:31]} 86. Kc6 {[%emt 0:00:24]} Rc2+ {[%emt 0:00:03]} 87. Kb6 {[%emt 0:00:23]} Kd5 {[%emt 0:00:51]} 88. Rd1+ {[%emt 0:00:05]} Nd2 {[%emt 0:00:27]} 89. Rh1 {[%emt 0:00:25]} Nf3 {[%emt 0:00:24]} 90. Rh5+ {[%emt 0:00:24]} Ne5 {[%emt 0:00:01]} 91. Rh1 {[%emt 0:00:40]} Nd7+ {[%emt 0:00:22]} 92. Kb5 {[%emt 0:00:47]} Rb2+ {[%emt 0:00:04]} 93. Ka4 {[%emt 0:00:07]} Nc5+ {[%emt 0:01:42]} 94. Ka3 {[%emt 0:00:23]} Rb8 {[%emt 0:00:24]} 95. Rh5+ {[%emt 0:00:51]} Kd4 {[%emt 0:00:35]} 96. Rh4+ {[%emt 0:00:07]} Ne4 {[%emt 0:00:01]} 97. Ka4 {[%emt 0:00:21]} Rb1 {[%emt 0:01:02]} 98. Rg4 {[%emt 0:02:39]} Kd5 {[%emt 0:00:47]} 99. Rh4 {[%emt 0:00:48]} Nd2 {[%emt 0:00:41]} 100. Rh5+ {[%emt 0:00:14]} Kd4 {[%emt 0:00:23]} 101. Rh4+ {[%emt 0:00:04]} Ne4 {[%emt 0:00:13]} 102. Rg4 {[%emt 0:00:06]} Kd5 {[%emt 0:01:00]} 103. Rh4 {[%emt 0:00:30]} Nc5+ {[%emt 0:00:23]} 104. Ka3 {[%emt 0:00:08]} Rb3+ {[%emt 0:00:35]} 105. Ka2 {[%emt 0:00:06]} Rb8 {[%emt 0:00:24]} 106. Ka3 {[%emt 0:00:15]} Nd3 {[%emt 0:00:37]} 107. Ka4 {[%emt 0:00:25]} Nb2+ {[%emt 0:00:20]} 108. Ka3 {[%emt 0:00:18]} Nd1 {[%emt 0:00:36]} 109. Rh5+ {[%emt 0:00:13]} Kc4 {[%emt 0:00:29] ( -> ...Ra8+)} 110. Rh4+ {[%emt 0:00:05]} Kd3 {[%emt 0:00:07]} 111. Rh3+ {[%emt 0:00:03]} Ne3 {[%emt 0:00:04]} 112. Ka4 {[%emt 0:00:39]} Kc4 {[%emt 0:00:10][%cal Rb8a8]} 113. Rh4+ {[%emt 0:00:07]} Kc5 {[%emt 0:00:02]} 114. Rh5+ {[%emt 0:00:06]} Nd5 {[%emt 0:00:02]} 115. Ka3 {[%emt 0:00:07]} Rb5 {[%emt 0:01:27]} 116. Rh4 {[%emt 0:00:23]} Rb1 {[%emt 0:00:27]} 117. Rh5 {[%emt 0:00:22]} Rd1 {[%emt 0:00:11]} 118. Kb3 {[%emt 0:00:11]} Rd3+ {[%emt 0:00:05]} 119. Kc2 {[%emt 0:00:05]} Rg3 {[%emt 0:00:06]} 120. Rh8 {[%emt 0:00:10]} Ne3+ {[%emt 0:00:40]} 121. Kd3 {[%emt 0:00:55]} Nd5+ {[%emt 0:00:17]} 122. Kd2 {[%emt 0:00:10]} Nf4 {[%emt 0:00:27]} 123. Rf8 {[%emt 0:00:28]} Rd3+ {[%emt 0:00:41]} 124. Kc2 {[%emt 0:00:05]} Rf3 {[%emt 0:00:05]} 125. Rc8+ {[%emt 0:00:06]} Kd4 {[%emt 0:00:05]} 126. Rd8+ {[%emt 0:00:05]} Nd5 {[%emt 0:00:05]} 127. Kd2 {[%emt 0:00:08]} Re3 {[%emt 0:00:44]} 128. Rxd5+ {[%emt 0:00:07][%mdl 64] Remove Defender} Kxd5 {[%emt 0:00:02]} 129. Kxe3 {[%emt 0:00:04]} Ke5 {[%emt 0:00:00] And White is the lucky defender.  Weighted Error Value: White=0.13 (very precise) /Black=0.23 (precise)} 1/2-1/2

[Event "44th Chess Olympiad Open 2022"]
[Site "Chennai"]
[Date "2022.08.08"]
[Round "10.21"]
[White "Flores, Diego"]
[Black "Wong, Zhenyong Jayden"]
[Result "1-0"]
[ECO "A37"]
[WhiteElo "2528"]
[BlackElo "2163"]
[Annotator "TA"]
[PlyCount "59"]
[EventDate "2022.07.29"]
[EventType "team-tourn"]
[EventCountry "IND"]
[SourceTitle "playchess.com"]
[Source "ChessBase"]
[SourceQuality "1"]
[WhiteTeam "Argentina"]
[BlackTeam "SGP"]
[WhiteTeamCountry "ARG"]
[TimeControl "40/5400+30:1800+30"]

{[%evp 19,59,0,0,0,0,-4,20,17,40,46,52,26,71,61,71,71,72,100,769,-566,-561,-554,156,122,319,290,267,250,243,254,482,497,556,560,544,552,544,543,629,617,870,829]} 1. c4 {[%emt 0:00:03]} c5 {[%emt 0:00:10]} 2. Nc3 {[%emt 0:00:38]} g6 {[%emt 0:00:17]} 3. g3 {[%emt 0:00:11]} Bg7 {[%emt 0:00:08]} 4. Bg2 {[%emt 0:00:06]} Nc6 {[%emt 0:00:06]} 5. a3 {[%emt 0:00:07]} d6 {[%emt 0:02:21]} 6. Rb1 {[%emt 0:00:20]} a5 {[%emt 0:00:37]} 7. Nf3 {[%emt 0:00:25][%cal Bg1f3,Bf3e1,Be1c2][%mdl 32]} e5 {[%emt 0:04:31]} 8. O-O {[%emt 0:00:28]} Nge7 {[%emt 0:00:11]} 9. d3 {[%emt 0:00:15]} O-O {[%emt 0:00:31]} 10. Bg5 {[%emt 0:00:12]} f6 {[%emt 0:00:36]} 11. Be3 {[%emt 0:00:35] A37: Symmetrical English vs ...g6: 4 Bg2 Bg7 5 Nf3.} Be6 {[%emt 0:02:02]} 12. Ne1 {[%emt 0:00:36]} Rb8 {[%emt 0:21:53] has lost popularity (12...b6).} 13. Nc2 {[%emt 0:01:28] The position is equal.} Nd4 {[%emt 0:01:04]} 14. b4 {[%emt 0:00:40]} b6 {[%emt 0:12:55][%cal Bb7b6,Bb6c5,Bc5d4][%mdl 32]} 15. Bd2 {[%emt 0:04:24]} Qd7 {[%emt 0:06:42] [#]} 16. bxc5 $146 {[%emt 0:18:09]} ({Predecessor:} 16. Re1 axb4 17. axb4 d5 18. cxd5 Nxd5 19. Nxd5 Bxd5 20. Bxd5+ Qxd5 21. Ne3 Qe6 22. bxc5 bxc5 {½-½ (47) Unzicker,F (2302)-Schmitz,T (2196) Germany 2004}) 16... bxc5 {[%emt 0:01:39]} 17. Nxd4 {[%emt 0:02:24]} cxd4 {[%emt 0:05:34]} 18. Ne4 {[%emt 0:00:21][%cal Bc3e4,Be4d6,Bd6b5,Bb5c7,Bc7d5,Bd5b6][%mdl 32]} Rb5 $2 {[%emt 0:12:37][%mdl 8192]} 19. Rb2 $4 {[%mdl 8192]} (19. Rxb5 $18 {and life is good for White.} Rc8 20. Rxa5) 19... Rxb2 $19 {[%emt 0:00:31]} 20. Qc1 {[%emt 0:00:15]} Rb1 21. Qxb1 $16 {[%emt 0:00:59]} Qa4 $2 {[%emt 0:00:50]} (21... Qc7 $16) 22. Nxd6 $18 {[%emt 0:02:55]} Qxa3 {[%emt 0:01:38]} 23. Nb5 {[%emt 0:00:46]} Qc5 {[%emt 0:01:27]} 24. Bxa5 {[%emt 0:01:54][%cal Bd2a5,Ba5c7,Bc7d6][%mdl 32] [#] Threatens to win with Bb4.} Nc6 {[%emt 0:00:45] Inhibits Bb4.} (24... Qc8 25. Bb4 Qd7) 25. Bc7 {[%emt 0:01:51] And now Bd6 would win. White is clearly winning.} Rc8 {[%emt 0:01:37]} 26. Bd6 {[%emt 0:01:03]} Qb6 {[%emt 0:00:12] [#]} 27. Nc7 $1 {[%emt 0:02:29][%mdl 512]} Qxb1 {[%emt 0:01:18]} 28. Rxb1 {[%emt 0:00:10]} Bd7 {[%emt 0:01:06]} 29. Nd5 {[%emt 0:01:23]} Be8 {[%emt 0:03:55]} 30. Nb6 {[%emt 0:00:20] Weighted Error Value: White=0.41/Black=0.95} 1-0

[Event "44th Chess Olympiad Open 2022"]
[Site "Chennai"]
[Date "2022.08.08"]
[Round "10.21"]
[White "Gong, Qianyun"]
[Black "Tristan, Leonardo"]
[Result "1-0"]
[ECO "B40"]
[WhiteElo "2275"]
[BlackElo "2558"]
[Annotator "TA"]
[PlyCount "123"]
[EventDate "2022.07.29"]
[EventType "team-tourn"]
[EventCountry "IND"]
[SourceTitle "playchess.com"]
[Source "ChessBase"]
[SourceQuality "1"]
[WhiteTeam "SGP"]
[BlackTeam "Argentina"]
[BlackTeamCountry "ARG"]
[TimeControl "40/5400+30:1800+30"]

{[%evp 11,123,3,14,12,16,10,7,0,0,-3,11,12,14,0,37,27,18,29,40,22,33,33,72,85,90,104,119,121,275,279,285,275,287,279,292,288,296,281,292,285,315,289,292,285,342,312,314,303,364,369,435,412,414,411,415,415,458,454,466,464,451,414,456,457,441,428,475,476,476,416,579,579,590,538,630,630,871,606,762,539,630,618,770,763,1145,931,958,927,885,851,914,950,1097,989,1482,1001,870,684,2184,2011,2072,1953,1936,1411,1247,1129,3318,2914,29973,29974,29970,29970,29992,29993]} 1. e4 {[%emt 0:00:03]} c5 {[%emt 0:00:09]} 2. Nf3 {[%emt 0:00:10]} e6 {[%emt 0:00:17]} 3. Nc3 {[%emt 0:01:00]} Nc6 {[%emt 0:00:22]} 4. g3 {[%emt 0:02:43]} Nf6 {[%emt 0:05:59]} 5. Bg2 {[%emt 0:03:18]} d5 {[%emt 0:13:55]} 6. exd5 {[%emt 0:03:06]} exd5 {[%emt 0:03:36]} 7. d4 $1 {[%emt 0:03:25] 7.d4 is better than 7.0-0. B40: Sicilian: 2...e6, Unusual lines.} Bg4 {[%emt 0:05:26]} 8. dxc5 {[%emt 0:06:51]} Bxc5 {[%emt 0:00:24]} 9. O-O {[%emt 0:00:24] The position is equal.} O-O {[%emt 0:00:19]} 10. Bg5 {[%emt 0:18:44] [#]} Ne5 $146 {[%emt 0:33:32]} ({Predecessor:} 10... d4 11. Ne4 Be7 12. Bxf6 Bxf6 13. h3 Bf5 14. Nxf6+ Qxf6 15. Nd2 Rfe8 16. g4 Be6 {0-1 (35) Bondar,D (2048)-Solovchuk,A (2374) Omelnyk 2018}) 11. h3 {[%emt 0:01:54]} Nxf3+ {[%emt 0:06:29]} 12. Bxf3 {[%emt 0:00:04]} Bxh3 {[%emt 0:00:09] [#]} 13. Nxd5 $1 {[%emt 0:00:26]} Bxf1 {[%emt 0:00:33]} 14. Bxf6 {[%emt 0:00:08]} gxf6 {[%emt 0:03:59]} 15. Qxf1 {[%emt 0:00:08]} Qd6 {[%emt 0:05:46]} 16. Kg2 {[%emt 0:00:28][%mdl 1024] White has compensation.} Kh8 {[%emt 0:00:59]} 17. Qd3 {[%emt 0:04:25][%cal Ob2b4] Threatens to win with b4!} Rg8 {[%emt 0:00:46][%cal Oc5f2]} 18. Rh1 {[%emt 0:00:07][%csl Gd3][%cal Rh1h7]} Rg6 {[%emt 0:03:21][%cal Oc5f2]} 19. Be4 $40 {[%emt 0:02:44][%mdl 128] White is out for blood. Dancing on a razor blade. White is more active.} Qe5 $2 {[%emt 0:00:09] A mistake that costs the game.} 20. Bxg6 $18 {[%emt 0:04:26]} fxg6 {[%emt 0:00:05]} 21. Nf4 {[%emt 0:01:53]} Rg8 {[%emt 0:07:35] [#]} 22. Qxg6 {[%emt 0:00:48][%csl Gh1][%cal Rg6h7][%mdl 512]} Rg7 {[%emt 0:00:05] [#]} (22... Qd5+ 23. Nxd5) 23. Qd3 {[%emt 0:00:30] Inhibits Be3. Qd8+ would kill now.} Qe8 {[%emt 0:04:53] Against Qd8} 24. Rh5 {[%emt 0:11:26]} Bb6 {[%emt 0:02:02]} 25. Rd5 {[%emt 0:01:02]} Qc6 {[%emt 0:01:23]} 26. c4 {[%emt 0:08:39]} Bc7 {[%emt 0:00:07]} 27. Nh5 {[%emt 0:03:53]} Re7 {[%emt 0:01:08]} 28. Qf3 {[%emt 0:00:46]} Rf7 {[%emt 0:00:28]} 29. b3 {[%emt 0:00:30]} a6 {[%emt 0:00:13]} 30. Qf5 {[%emt 0:03:47] Threatening mate with Qc8+.} Bb6 {[%emt 0:00:27]} 31. Nf4 {[%emt 0:03:00]} Re7 {[%emt 0:00:32]} 32. Kf1 {[%emt 0:04:12]} Bc7 {[%emt 0:00:40]} 33. Nh5 {[%emt 0:01:20]} Re6 {[%emt 0:00:41]} 34. Qg4 {[%emt 0:00:17][%csl Gh5][%cal Rg4g7]} Re7 {[%emt 0:00:08] Against Qg7+} 35. Qc8+ {[%emt 0:02:41]} Re8 {[%emt 0:00:05]} 36. Qd7 {[%emt 0:00:31]} Qxd7 {[%emt 0:00:19]} 37. Rxd7 {[%emt 0:00:03][%mdl 4096] Endgame KRB-KRN} Be5 {[%emt 0:00:05]} 38. Rxb7 {[%emt 0:00:13]} Rd8 {[%emt 0:01:04]} 39. Rb6 {[%emt 0:01:30]} a5 {[%emt 0:00:44]} 40. Ra6 {[%emt 0:03:13]} Bc3 {[%emt 0:00:57]} 41. Nxf6 {[%emt 0:31:10]} Rd1+ {[%emt 0:05:46]} 42. Kg2 {[%emt 0:00:00]} Ra1 {[%emt 0:00:43]} 43. Nd5 {[%emt 0:00:00]} Be1 {[%emt 0:00:58]} 44. Re6 {[%emt 0:00:00]} Rd1 {[%emt 0:01:00]} 45. Re2 {[%emt 0:00:00]} Kg7 {[%emt 0:00:41]} 46. a3 {[%emt 0:00:00]} Kf7 {[%emt 0:00:37]} 47. b4 {[%emt 0:00:00]} a4 {[%emt 0:03:33]} 48. Nb6 {[%emt 0:00:00]} Bd2 {[%emt 0:01:34]} 49. Nxa4 {[%emt 0:00:00]} Bc1 {[%emt 0:00:06]} 50. Ra2 {[%emt 0:00:00]} Rd3 {[%emt 0:02:27]} 51. Nc5 {[%emt 0:00:00]} Rc3 {[%emt 0:00:18]} 52. Ne4 {[%emt 0:00:00]} Rb3 {[%emt 0:00:11]} 53. b5 {[%emt 0:00:00] aiming for a4.} Bxa3 {[%emt 0:01:43]} 54. b6 {[%emt 0:00:00]} Ke7 {[%emt 0:06:15]} 55. c5 {[%emt 0:00:00][%cal Oa2a3] Rxa3! is the strong threat.} Kd7 {[%emt 0:00:42]} 56. Rd2+ {[%emt 0:00:00]} Kc8 {[%emt 0:00:22]} 57. Rd6 {[%emt 0:00:00]} Rb4 {[%emt 0:01:37]} 58. Rc6+ {[%emt 0:00:00]} Kd7 {[%emt 0:00:31]} 59. Rc7+ {[%emt 0:00:00]} Kd8 {[%emt 0:00:25]} 60. Nd6 {[%emt 0:00:00] White mates.} Rb3 {[%emt 0:03:57]} 61. Rxh7 {[%emt 0:00:44]} Bb2 {[%emt 0:00:14]} 62. c6 {[%emt 0:00:53] Weighted Error Value: White=0.14 (very precise) /Black=0.32} 1-0

[Event "44th Chess Olympiad Open 2022"]
[Site "Chennai"]
[Date "2022.08.08"]
[Round "10.22"]
[White "Quesada Perez, Yasser"]
[Black "Ferreira, Jorge Viterbo"]
[Result "1/2-1/2"]
[ECO "D02"]
[WhiteElo "2568"]
[BlackElo "2499"]
[Annotator "TA"]
[PlyCount "73"]
[EventDate "2022.07.29"]
[EventType "team-tourn"]
[EventCountry "IND"]
[SourceTitle "playchess.com"]
[Source "ChessBase"]
[SourceQuality "1"]
[WhiteTeam "Cuba"]
[BlackTeam "Portugal"]
[WhiteTeamCountry "CUB"]
[BlackTeamCountry "POR"]
[TimeControl "40/5400+30:1800+30"]

{[%evp 9,73,0,2,6,8,10,6,6,4,4,8,4,4,-4,5,-2,0,0,14,8,8,0,0,-24,37,37,47,0,0,0,0,0,0,0,0,-10,0,0,0,-12,0,-2,0,0,0,0,0,0,0,0,0,0,0,0,0,0,0,0,0,0,0,0,0,0,0,0]} 1. d4 {[%emt 0:00:03]} d5 {[%emt 0:00:27]} 2. Bf4 {[%emt 0:00:06]} Nf6 {[%emt 0:00:48]} 3. e3 {[%emt 0:00:05]} e6 {[%emt 0:00:35]} 4. Nf3 {[%emt 0:00:14]} Bd6 {[%emt 0:00:08]} 5. c3 {[%emt 0:03:02]} O-O {[%emt 0:04:09]} 6. Bd3 {[%emt 0:01:47] D02: 1 d4 d5 2 Nf3 sidelines, including 2...Nf6 3 g3 and 2...Nf6 3 Bf4.} b6 {[%emt 0:01:47]} 7. Qe2 {[%emt 0:00:28]} Bxf4 {[%emt 0:01:18]} 8. exf4 {[%emt 0:00:04]} a5 {[%emt 0:00:13] [#]} 9. O-O $146 {[%emt 0:03:07]} ({Predecessor:} 9. Nbd2 Ba6 10. Ne5 c5 11. h4 Qd6 12. a3 Rc8 13. O-O Bxd3 14. Qxd3 Nc6 15. Rfe1 cxd4 16. cxd4 {1-0 (50) Balla,T (2336)-Rohit,S (2189) Budapest 2021}) 9... Ba6 {[%emt 0:00:11]} 10. Bxa6 {[%emt 0:00:14]} Nxa6 {[%emt 0:00:10]} 11. Ne5 {[%emt 0:00:18]} Qc8 {[%emt 0:05:35]} 12. Nd2 {[%emt 0:02:13]} Qb7 {[%emt 0:04:37]} 13. h4 {[%emt 0:01:34]} c5 {[%emt 0:05:37]} 14. h5 {[%emt 0:05:30][%cal Oh5h6]} cxd4 {[%emt 0:12:21]} 15. cxd4 {[%emt 0:00:23][%cal Oh5h6]} Rfc8 {[%emt 0:02:28]} 16. Rac1 {[%emt 0:03:06]} Rxc1 {[%emt 0:12:42]} ({Better is} 16... Nb4 $11) 17. Rxc1 $14 {[%emt 0:00:12]} Rc8 {[%emt 0:00:05]} 18. Rc3 {[%emt 0:02:54]} (18. Rxc8+ $1 $14 Qxc8 19. Qb5) 18... Rxc3 {[%emt 0:06:06] The position is equal.} 19. bxc3 {[%emt 0:00:10]} Nc7 {[%emt 0:00:16][%cal Ba6c7,Bc7e8,Be8d6][%mdl 32]} 20. h6 {[%emt 0:09:27]} gxh6 {[%emt 0:07:20]} 21. Qd3 {[%emt 0:06:35]} Nce8 {[%emt 0:02:08]} 22. Qh3 {[%emt 0:14:04]} Kg7 {[%emt 0:03:13]} 23. Nf1 {[%emt 0:07:47]} Qe7 {[%emt 0:04:18]} 24. Ne3 {[%emt 0:04:29]} Nd6 {[%emt 0:03:17]} 25. Qh4 {[%emt 0:04:57]} Ng8 {[%emt 0:01:28]} 26. Qg4+ {[%emt 0:01:08]} Kf8 {[%emt 0:00:26]} 27. f5 {[%emt 0:01:42]} Nxf5 {[%emt 0:05:11]} 28. Nxf5 {[%emt 0:00:05]} exf5 {[%emt 0:00:06]} 29. Qxf5 $11 {[%emt 0:00:06][%mdl 4096] Endgame KQN-KQN} Nf6 {[%emt 0:01:05]} 30. Qf4 {[%emt 0:06:10]} Kg7 {[%emt 0:00:20]} 31. f3 {[%emt 0:04:12]} Qa3 {[%emt 0:04:33]} 32. Qd2 {[%emt 0:01:45]} Qe7 {[%emt 0:01:15]} 33. Qb2 {[%emt 0:07:18]} Nd7 {[%emt 0:00:54]} 34. Nxd7 {[%emt 0:08:14] [#] aiming for Ne5.} Qe1+ {[%emt 0:00:09]} 35. Kh2 {[%emt 0:00:04]} Qh4+ {[%emt 0:00:04]} 36. Kg1 {[%emt 0:00:02]} Qe1+ {[%emt 0:00:06]} 37. Kh2 {[%emt 0:00:05] Weighted Error Value: White=0.04 (flawless) /Black=0.06 (flawless)} 1/2-1/2